Cogmind - Beta 14 @@@ ROGUE MODE // 2024.10.18 @ 21:11:21 Player: CrossedViper Result: Destroyed by XA-801(R) with Subdweller Machine Gun Performance ------------- Evolutions (0) 0 Regions Visited (2) 400 Robots Destroyed (34) 170 Value Destroyed (871) 871 Prototype IDs (0) 0 Alien Tech Used (0) 0 Bonus (0) 0 TOTAL SCORE: 1441 Bonus ------- None Cogmind --------- Core Integrity 0/250 Matter 288/300 Energy 147/200 System Corruption 3% Temperature Cool (0) Movement Treading (260) Ox1 Location -10/Subcaves Parts ------- > --- POWER (1) -------- Subdweller Power Source > --- PROPULSION (2) --- Spiked Treads Aluminum Leg > --- UTILITY (2) ------ Scrap Shield > --- WEAPON (2) ------- Subdweller Laser Subdweller Machine Gun > --- INVENTORY (5) ---- Subdweller Power Source Large Storage Unit Power Bank Subdweller Laser Battle Rifle Peak State ------------ > --- POWER ------------ Subdweller Power Source > --- PROPULSION ------- Spiked Treads Aluminum Leg > --- UTILITY ---------- Scrap Shield > --- WEAPON ----------- Subdweller Laser Subdweller Laser > --- INVENTORY -------- Subdweller Power Source Large Storage Unit Power Bank Subdweller Laser Subdweller Laser [Rating: 14] Favorites ----------- Power Subdweller Power Source Engine Subdweller Power Source Propulsion Light Treads Treads Light Treads Leg Aluminum Leg Utility Scrap Shield Device Improved Heat Sink Storage Small Storage Unit Protection Scrap Shield Weapon Subdweller Laser Energy Gun Subdweller Laser Energy Cannon Beam Cannon Ballistic Gun Subdweller Machine Gun Build | -11 -10 -10 ------- Run | Yrd Mat Sub Slots Evolved . | . . . Power . | . . . Propulsion . | . . . Utility . | . . . Weapon . | . . . Parts Attached 29 | 6 6 17 Power 6 | 1 1 4 Engine 6 | 1 1 4 Core . | . . . Reactor . | . . . Propulsion 5 | 2 . 3 Treads 3 | 2 . 1 Leg 2 | . . 2 Wheel . | . . . Hover . | . . . Flight . | . . . Utility 7 | 1 3 3 Device 3 | . 2 1 Storage 2 | 1 1 . Processor . | . . . Hackware . | . . . Protection 2 | . . 2 Artifact . | . . . Weapon 11 | 2 2 7 Energy Gun 7 | 2 . 5 Energy Cannon 3 | . 2 1 Ballistic Gun 1 | . . 1 Ballistic Cannon . | . . . Launcher . | . . . Special Weapon . | . . . Impact Weapon . | . . . Slashing Weapon . | . . . Piercing Weapon . | . . . Special Melee Weapon . | . . . Unidentified Prototypes . | . . . Parts Lost 4 | . 1 3 Power 1 | . . 1 Propulsion 2 | . . 2 Utility 1 | . 1 . Weapon . | . . . Highest Loss Streak 1 | . 1 1 To Critical Strikes . | . . . Average Slot Usage (%) 90 | . 98 86 Engine 14 | . 14 14 Treads 20 | . 28 16 Leg 6 | . . 10 Device 6 | . 12 2 Storage 6 | . 14 2 Protection 7 | . . 11 Energy Gun 13 | . . 20 Energy Cannon 12 | . 27 3 Ballistic Gun 2 | . . 3 Peak Build Rating 14 | 6 10 14 Average Rating 11 | 4 8 12 On Entrance 5 | . 6 10 Naked Turns . | . . . Heaviest Build 34 | 13 30 34 Greatest Support 40 | 40 40 40 Greatest Overweight (x) 2 | . . 2 Average Overweight (x) . | . . . Largest Inventory Capacity 15 | 8 15 15 Average Capacity 7 | 7 10 6 Most Carried 15 | 4 13 15 Average Carried 7 | 2 8 6 Final Capacity 15 | 8 15 5 Final Carried 13 | 4 13 5 Class Distribution -------------------- 51% | Subdweller-Mutant 47% | Mutant Dominant Class ---------------- Mutant | -10/Materials Subdweller-Mutant | -10/Subcaves Resources | -11 -10 -10 ----------- Run | Yrd Mat Sub Matter Collected 504 | 260 55 189 Remotely . | . . . Salvage Created 1247 | 68 666 513 Parts 85 | 6 40 39 Haulers Intercepted 2 | . 2 . Recyclers Shooed 2 | . 2 . Parts Field Recycled . | . . . Retrieved Matter . | . . . Parts Self-Destructed 11 | . . 11 Prevented . | . . . Kills | -11 -10 -10 ------- Run | Yrd Mat Sub Combat Hostiles Destroyed 23 | . 11 12 Guns 6 | . . 6 Cannons 16 | . 11 5 Classes Destroyed 9 | 2 6 1 Worker 1 | . 1 . Builder 3 | . 3 . Tunneler 3 | 1 2 . Hauler 2 | . 2 . Recycler 1 | 1 . . Watcher 1 | . 1 . Swarmer 3 | . 3 . Grunt 8 | . 8 . Subdweller 12 | . . 12 Best Kill Streak 4 | 2 4 2 Combat Bots Only 2 | . 2 2 Max Kills in Single Turn 1 | 1 1 1 Gunslinging . | . . . Exploded . | . . . Melee . | . . . Uniques/NPCs Destroyed . | . . . Combat | -11 -10 -10 -------- Run | Yrd Mat Sub Hostile Shots Fired 92 | . 39 53 Missed 22 | . 10 12 Damage Taken 1349 | . 330 1019 Core 254 | . 73 181 Absorbed by Shields . | . . . Core Remaining (%) 100 | 100 . . Volleys Fired 111 | 3 48 60 Largest 2 | 2 2 2 Hottest 120 | 90 120 120 Shots Fired 213 | 6 96 111 Gun 79 | 6 . 73 Cannon 134 | . 96 38 Launcher . | . . . Special . | . . . Kinetic 1 | . . 1 Thermal 212 | 6 96 110 Explosive . | . . . Electromagnetic . | . . . Robot Hit Streak 31 | 4 12 31 Robot Miss Streak 3 | . 3 2 Penetration Max . | . . . Secondary Targets . | . . . Shots Hit Robots 132 | 4 57 71 Core Hits 47 | 3 22 22 Critical Kills 1 | . . 1 Critical Parts Destroyed . | . . . Critical Strikes 2 | . . 2 Meltdown 1 | . . 1 Destroy 1 | . . 1 Melee Attacks . | . . . Impact . | . . . Slashing . | . . . Piercing . | . . . Sneak Attacks . | . . . Combat Hostiles . | . . . Follow-up Attacks . | . . . Damage Inflicted 2528 | 59 1098 1371 Guns 871 | 59 . 812 Cannons 1637 | . 1078 559 Explosions . | . . . Melee . | . . . Ramming 20 | . 20 . Kinetic 24 | . . 24 Thermal 2484 | 59 1078 1347 Explosive . | . . . Electromagnetic . | . . . Impact . | . . . Slashing . | . . . Piercing . | . . . Highest Corruption 3 | . . 3 Average Corruption 3 | . . 3 Corruption Purged . | . . . Corruption Blocked . | . . . Effects 30 | . . 30 Message Errors 7 | . . 7 Matter Fused 6 | . . 6 Heat Flow Errors 7 | . . 7 Energy Discharges 3 | . . 3 Data Loss (minor) 1 | . . 1 Data Loss (major) 3 | . . 3 Misfires 1 | . . 1 Alerts 2 | . . 2 Overload Shots . | . . . Overflow Damage 6 | . 6 . Projectiles 6 | . 6 . Explosions . | . . . Melee . | . . . Knockbacks . | . . . Impact . | . . . Kinetic . | . . . Secondary . | . . . Self-Inflicted Damage . | . . . Shots . | . . . Rammed 4 | . 4 . Targets Rammed 4 | . 4 . Kicked . | . . . Crushed . | . . . Highest Temperature 241 | 90 216 241 Average Temperature 63 | 48 64 60 Received Heat Transfer 210 | . 147 63 Siege Activations . | . . . Robots Corrupted . | . . . Combat Hostiles . | . . . Parts Fried . | . . . Impact Corruptions . | . . . Robots Melted 1 | . . 1 Combat Hostiles 1 | . . 1 Parts Melted 12 | . 5 7 Heat Transferred 4552 | 161 2257 2134 Parts Sabotaged . | . . . Parts Stolen . | . . . Parts Stripped . | . . . Power Chain Reactions . | . . . Alert | -11 -10 -10 ------- Run | Yrd Mat Sub Peak Influence 246 | 10 246 . Initial 6 | . 6 . Average 69 | 2 73 . Maximum Alert Level 1 | . 1 . Low Security (%) 92 | 100 91 . Level 1 7 | . 8 . Level 2 . | . . . Level 3 . | . . . Level 4 . | . . . Level 5 . | . . . High Security . | . . . Max Security . | . . . Squads Dispatched 4 | . 4 . Investigation 4 | . 4 . Extermination . | . . . Reinforcement . | . . . Assault . | . . . Garrison . | . . . Intercept . | . . . Searches Triggered . | . . . Construction Impeded . | . . . Haulers Reinforced . | . . . Active Scanning Responses . | . . . Cargo Convoy Interrupts . | . . . Stealth | -11 -10 -10 --------- Run | Yrd Mat Sub Distress Signals 2 | . 2 . Communications Jammed . | . . . Distress Signals . | . . . Times Spotted 34 | . 18 16 Peak Tracking Total 4 | . 4 4 Tactical Retreats 2 | . 2 . Traps | -11 -10 -10 ------- Run | Yrd Mat Sub Traps Triggered 3 | . 3 . Indirectly . | . . . Trap Hack Attempts . | . . . Triggered . | . . . Disarmed . | . . . Reprogrammed . | . . . Reused . | . . . Traps Extracted . | . . . Installed . | . . . Triggered . | . . . Machines | -11 -10 -10 ---------- Run | Yrd Mat Sub Machines Disabled . | . . . Max in Single Turn . | . . . Machines Repaired . | . . . Machines Dismantled . | . . . Machines Sabotaged . | . . . Overloaded Fab Kills . | . . . Hacking | -11 -10 -10 --------- Run | Yrd Mat Sub Machines Accessed 5 | . 4 1 Terminals 3 | . 3 . Fabricators . | . . . Repair Stations . | . . . Recycling Units 1 | . 1 . Scanalyzers . | . . . Garrison Access . | . . . Total Hacks 13 | . 8 5 Successful 10 | . 5 5 Failed 2 | . 2 . Catastrophic . | . . . Database Lockouts 1 | . 1 . Manual 3 | . 3 . Terminals 7 | . 7 . Fabricators . | . . . Repair Stations . | . . . Recycling Units 1 | . 1 . Scanalyzers . | . . . Garrison Access . | . . . Terminal Hacks 9 | . 4 5 Record 5 | . . 5 Robot Analysis 1 | . 1 . Transport Status 1 | . 1 . Zone Layout 2 | . 2 . Fabricator Hacks . | . . . Repair Station Hacks . | . . . Recycling Unit Hacks . | . . . Scanalyzer . | . . . Garrison Access Hacks . | . . . Unauthorized Hacks 1 | . 1 . Terminals . | . . . Fabricators . | . . . Repair Stations . | . . . Recycling Units 1 | . 1 . Tunnel 1 | . 1 . Scanalyzers . | . . . Garrison Access . | . . . Data Cores Recovered . | . . . Used . | . . . Hacking Detections 2 | . 2 . Full Trace Events . | . . . Feedback Events . | . . . Feedback Blocked . | . . . Robot Schematics Acquired . | . . . Robots Built . | . . . Authchips . | . . . Time . | . . . Total Robot Build Rating . | . . . Part Schematics Acquired . | . . . Parts Built . | . . . Authchips . | . . . Time . | . . . Total Part Build Rating . | . . . Parts Repaired . | . . . Time . | . . . Parts Recycled . | . . . Recycled Matter . | . . . Retrieved Matter . | . . . Retrieved Components . | . . . Parts Scanalyzed . | . . . Part Schematics Acquired . | . . . Parts Damaged . | . . . Bothacking | -11 -10 -10 ------------ Run | Yrd Mat Sub Used RIF Installer . | . . . Robots Hacked . | . . . Non-combat . | . . . Combat . | . . . Robot Hacks Applied . | . . . Relay Couplers Released . | . . . Fabnet Peak Effective % . | . . . Robots Rewired . | . . . Allies Hacked . | . . . Hacks Repelled . | . . . Allies | -11 -10 -10 -------- Run | Yrd Mat Sub Total Allies . | . . . Largest Group . | . . . Highest-Rated Group . | . . . Highest-Rated Ally . | . . . Total Orders . | . . . Ally Attacks . | . . . Total Damage . | . . . Kills . | . . . Allies Corrupted . | . . . Allies Melted . | . . . Intel | -11 -10 -10 ------- Run | Yrd Mat Sub Robot Analysis Total 1 | . 1 . Derelict Logs Recovered . | . . . Drone Launches . | . . . Drone Recoveries . | . . . Exploration | -11 -10 -10 ------------- Run | Yrd Mat Sub Turns Passed 4204 | 92 1531 2581 Spaces Moved 1465 | 45 575 845 Core 1 | 1 . . Treads 1433 | 44 575 814 Legs 31 | . . 31 Wheels . | . . . Hover . | . . . Flight . | . . . Fastest Speed 50 | 50 160 160 Average Speed 200 | 157 160 230 Slowest Speed 260 | 160 160 260 Overloaded Moves . | . . . Propulsion Burnouts . | . . . Robots Hopped . | . . . Cave-ins Triggered 1 | . . 1 Exploration Rate (%) 35 | 4 73 28 Regions Visited 2 Branch Regions 1 Pre-discovered Areas 2 | . 1 1 Known Exits Taken . | . . . Unknown Exits Taken 2 | 1 1 . Scrap Searched 8 | . . 8 Spaces Dug 11 | . . 11 Terrain Destroyed 13 | . . 13 Melee . | . . . Projectile 13 | . . 13 AOE . | . . . Terrain Rammed . | . . . Walls Destroyed . | . . . Machines Disabled . | . . . Actions | -11 -10 -10 --------- Run | Yrd Mat Sub Total 2520 | 58 1089 1373 Wait 841 | . 439 402 Move 1462 | 44 574 844 Hop . | . . . Pick Up 30 | 5 13 12 Fast Attach 13 | 5 2 6 Attach 8 | 1 2 5 Detach . | . . . Swap 8 | . 2 6 Drop 30 | . 5 25 Fire 111 | 3 48 60 Melee . | . . . Ram . | . . . Kick . | . . . Crush 4 | . 4 . Escape Stasis 1 | . . 1 Rewire . | . . . Trap . | . . . Miscellaneous 12 | . . 12 Route ------- -11/Scrapyard -10/Materials (discovered 4 exits: [*Mat x2] / [*Min] / *Sub) -10/Subcaves History --------- Turn | Location | Event 7 | -11/Scrapyard | Discovered new exit (range 15) 93 | -11/Scrapyard | Entered Materials 310 | -10/Materials | Build established: Mutant 450 | -10/Materials | Discovered new exit (range 10) 466 | -10/Materials | Central database locked down 980 | -10/Materials | Discovered new exit (range 3) 1112 | -10/Materials | Discovered new exit (range 13) 1187 | -10/Materials | Discovered new exit (range 5) 1624 | -10/Materials | Entered Subcaves 1707 | -10/Subcaves | Learned location of Zion (-7) 1707 | -10/Subcaves | Met a Zionite searching for "candidates" 2357 | -10/Subcaves | Build established: Subdweller-Mutant 2564 | -10/Subcaves | A Subdweller sparked back to life 2564 | -10/Subcaves | A Subdweller sparked back to life 2673 | -10/Subcaves | Core integrity fell below 50% 2869 | -10/Subcaves | Crushed by falling debris 2870 | -10/Subcaves | Core integrity fell below 20% 3061 | -10/Subcaves | Found Prototype Device 3717 | -10/Subcaves | A swath of the cavern ceiling suddenly collapsed 3747 | -10/Subcaves | Visited Clippyterm 3755 | -10/Subcaves | Learned Factory trap positions 3755 | -10/Subcaves | Learned Factory fabricator intel 4205 | -10/Subcaves | Destroyed by XA-801(R) with Subdweller Machine Gun Last Messages --------------- It looks like you're defining "roguelike," quit while you're ahead. Please. 03776_ System corrupted: Substantial component data lost. 03818_ Sub. Power Source shoots sparks and powers down. 03821_ Dropped Broken Sub. Power Source. 03856_ System corrupted: Heat flow error (+286). 03895_ N,#LMU%,A QXLBEQITQ1C=JEXQJUR9>Y 03944_ System corrupted: Matter fused (-5). 03996_ Acquired 20 matter. 04001_ System corrupted: Matter fused (-7). 04001_ Acquired Sub. Power Source. 04002_ Acquired 7 matter. 04064_ System corrupted: Substantial component data lost. 04079_ System corrupted: Matter fused (-5). 04126_ System corrupted: IFF burst signal emitted. 04195_ System corrupted: Energy discharge (-80). Map ----- +----------------------------------------------------+ | ##?##??####???????????????????????????????????? | | ####?????????????????????????????????????????????? | | #????????????????????????????????????????????????? | | ?????????????????????????????????????????????????? | | ?????????????????????????????????????????????????? | | ?????????????????????????????????????????????????? | | ?????????????????????????????????????????????????? | | ?????????????????????????????????????????????????? | | ?????????????????????????????????????????????????? | | ?????????????????????????????????????????????????? | | ?????????????????????????????????????????????????? | | ?????????????????????????????????????????????????? | | ?????????????????????????????????????????????????? | | ?????????????????????????????????????????????????? | | ?????????????????????????????????????????????????? | | ?????????????????????????????###""???????????????? | | ?????????????####?###???????# """"???????????????? | | ####?????????# ### ##?????# """"???????????????? | | ###??????## #????? ""#????????????????? | | #####?## ###### #????????????????? | | ### ## # #????????????????? | | "##???????????????? | | ### ## R """#???????????????? | | ??###### # ## # # ### " ????????????? | | ???????## ## ## ### ##???? "????????????? | | ????????# #########?# @#??????? "???????????? | | ???????? ##?????????## ???????? "???????????? | | ???????## #???????????## ???????????????????? | | ????????# #????????????#######??????????????????? | | ???????? ?????????????????????????????????????? | | ???????? ?????????????????????????????????????? | | ???????? ###????????????????????????????????????? | | ????????##???????????????????????????????????????? | | ?????????????????????????????????????????????????? | | ?????????????????????????????????????????????????? | | ?????????????????????????????????????????????????? | | ?????????????????????????????????????????????????? | | ?????????????????????????????????????????????????? | | ?????????????????????????????????????????????????? | | ?????????????????????????????????????????????????? | | ?????????????????????????????????????????????????? | | ?????????????????????????????????????????????????? | | ?????????????????????????????????????????????????? | | ?????????????????????????????????????????????????? | | ?????????????????????????????????????????????????? | | ?????????????????????????????????????????????????? | | ?????????????????????????????????????????????????? | | ?????????????????????????????????????????????????? | | ?????????????????????????????????????????????????? | | ?????????????????????????????????????????????????? | +----------------------------------------------------+ Best States ------------- Heat Dissipation 39 Coolant Potential 50 Energy Generation 15 Energy Capacity 250 Matter Stores 300 Matter Capacity 300 Sight Range 16 Terrain Scan Density 10 Armor Coverage 800 Evasion (%) 40 Recoil Reduction 2 Item Schematics ----------------- None Robot Schematics ------------------ None Fabricated ------------ Nothing Alien Tech Used ----------------- None Achievements -------------- None Challenges ------------ None Game ------ Seed MetafiberDiametricGravjet Manual? 0 Play Time 00:16:50 Cumulative 898.2 hours Start 2024.10.18 @ 20:55:35 End 2024.10.18 @ 21:11:21 Sessions 1 Manual Loads 0 Difficulty Rogue Special Mode None Game No. 560 Rogue 553 Adventurer 0 Explorer 7 Win Type - Total 61 Types 22/6/21/2/0/1/6/1/2 Lore% 85 Gallery% 95 Achievement% 85 Wizard Run 0 Options --------- Layout 2 ASCII 0 Keyboard 0 Movement Numpad Keybinds 0 Fullscreen 1 Font 24/Smallcaps Map View 50x44 Zoom Use 0% Tactical HUD 1 Map Filters NONE Filters NONE Steam 1 RUN: 7e766853-e96c-49da-9393-e840f5105762